bitfinex-derivatives/quotes_ETHF0:USTF0_20260123
["timestamp","ask_amount","ask_price","bid_price","bid_amount"]
[1769165569726,0.87909504,2933.3,2932.3,0.91129027]
[1769165569930,0.00300378,2933.4,2932.3,0.91129027]
[1769165570130,0.87909331,2933.3,2932.3,0.91129027]
[1769165570329,0.87909331,2933.2,2932.3,0.91129027]
[1769165570529,0.00300378,2933.4,2932.3,0.91129027]
[1769165570835,0.87923744,2933.3,2932.3,0.91129027]
[1769165571132,0.87923744,2933.2,2932.1,0.14796413]
[1769165571331,0.00300378,2933.4,2932.1,0.14796413]
[1769165571632,0.87924114,2933.3,2932.1,0.14796413]
[1769165571834,0.87924114,2933.2,2932.1,0.14796413]
[1769165572034,0.00300378,2933.4,2932.1,0.14796413]
[1769165572230,0.8792454,2933.3,2932.1,0.14796413]
[1769165572428,0.8792454,2933.2,2932.1,0.14796413]
[1769165572629,0.00300378,2933.4,2932.1,0.14796413]
[1769165572830,0.87924536,2933.3,2932.1,0.14796413]
[1769165573033,0.87924536,2933.2,2932.1,0.14796413]
[1769165573232,0.00300378,2933.4,2932.1,0.14796413]
[1769165573434,0.87925149,2933.3,2932.1,0.14796413]
[1769165573734,0.87925149,2933.2,2932.1,0.14796413]
[1769165573924,0.00300378,2933.4,2932.1,0.14796413]
[1769165574130,0.87925146,2933.3,2932.1,0.14796413]
[1769165574328,0.87925146,2933.2,2932.1,0.14796413]
[1769165574535,0.00300378,2933.4,2932.1,0.14796413]
[1769165574737,0.87917132,2933.3,2932.1,0.14796413]
[1769165574935,0.87917132,2933.2,2932.1,0.14796413]
[1769165575137,0.00300378,2933.4,2932.1,0.14796413]
[1769165575336,0.87918462,2933.3,2932.1,0.14796413]
[1769165575541,0.00300378,2933.4,2932.1,0.14796413]
[1769165575727,0.8791731,2933.3,2932.1,0.14796413]
[1769165575931,0.8791731,2933.2,2932.1,0.14796413]
[1769165576131,0.00300378,2933.4,2932.1,0.14796413]
[1769165576339,0.87919788,2933.3,2932.1,0.14796413]
[1769165576538,0.00300378,2933.4,2932.1,0.14796413]
[1769165576539,0.87919788,2933.2,2932.1,0.14796413]
[1769165576738,0.00300378,2933.4,2932.1,0.14796413]
[1769165576930,0.87920049,2933.3,2932.1,0.14796413]
[1769165577137,0.87920049,2933.2,2932.1,0.14796413]
[1769165577338,0.00300378,2933.4,2932.1,0.14796413]
[1769165577539,0.87924048,2933.3,2932.1,0.14796413]
[1769165577841,0.87924048,2933.2,2932.1,0.14796413]
[1769165578140,0.00300378,2933.4,2932.1,0.14796413]
[1769165578342,0.87925465,2933.3,2932.1,0.14796413]
[1769165578542,0.87925465,2933.3,2931.9,2.4126858]
[1769165578543,0.87925465,2933.2,2931.9,2.4126858]
[1769165579343,0.87925465,2933.2,2931.9,2.56064993]
[1769165582440,0.87925465,2933.2,2931.9,0.15208642]
[1769165582441,1.03200305,2933.2,2931.9,0.15208642]
[1769165582741,0.87925465,2933.1,2931.9,0.15208642]
[1769165587142,0.17366378,2933.4,2931.9,0.15208642]
[1769165587348,0.8792948,2933.3,2931.9,0.15208642]
[1769165587548,0.8792948,2933.2,2931.9,0.15208642]
[1769165587748,0.8792948,2933.1,2931.9,0.15208642]
[1769165587949,0.17366378,2933.4,2931.9,0.15208642]
[1769165588147,0.87929447,2933.3,2931.9,0.15208642]
[1769165588341,0.87929447,2933.2,2931.9,0.15208642]
[1769165588547,0.87929447,2933.1,2931.9,0.15208642]
[1769165588745,0.17366378,2933.4,2931.9,0.15208642]
[1769165588953,0.87933166,2933.3,2931.9,0.15208642]
[1769165589253,0.87933166,2933.2,2931.9,0.15208642]
[1769165589452,0.87933166,2933.1,2931.9,0.15208642]
[1769165589757,0.17366378,2933.4,2931.9,0.15208642]
[1769165589948,0.87937068,2933.3,2931.9,0.15208642]
[1769165590149,0.87937068,2933.2,2932.0,0.14662067]
[1769165590349,0.87937068,2933.1,2932.0,0.14662067]
[1769165590551,0.17366378,2933.4,2932.0,0.14662067]
[1769165590749,0.87941467,2933.3,2932.0,0.14662067]
[1769165590952,0.87941467,2933.2,2932.0,0.14662067]
[1769165591255,0.87941467,2933.1,2932.0,0.14662067]
[1769165591553,0.17366378,2933.4,2932.0,0.14662067]
[1769165591755,0.87946549,2933.3,2932.0,0.14662067]
[1769165592051,0.87946549,2933.2,2932.0,0.14662067]
[1769165592352,0.87946549,2933.1,2932.0,0.14662067]
[1769165592549,0.17366378,2933.4,2932.0,0.14662067]
[1769165592851,0.87944929,2933.3,2932.0,0.14662067]
[1769165593051,0.87944929,2933.2,2932.0,0.14662067]
[1769165593248,0.87944929,2933.1,2932.0,0.14662067]
[1769165593445,0.17366378,2933.4,2932.0,0.14662067]
[1769165593647,0.8794384,2933.3,2932.0,0.14662067]
[1769165593847,0.8794384,2933.2,2932.0,0.14662067]
[1769165594052,0.8794384,2933.1,2932.0,0.14662067]
[1769165594251,0.00300378,2933.4,2932.0,0.14662067]
[1769165594454,0.87943069,2933.3,2932.0,0.14662067]
[1769165594653,0.87943069,2933.2,2932.0,0.14662067]
[1769165594951,0.87943069,2933.1,2932.0,0.14662067]
[1769165595152,0.00300378,2933.4,2932.0,0.14662067]
[1769165595354,0.87942633,2933.3,2932.0,0.14662067]
[1769165595555,0.87942633,2933.2,2932.0,0.14662067]
[1769165595757,0.87942633,2933.1,2932.0,0.14662067]
[1769165595958,0.00300378,2933.4,2932.0,0.14662067]
[1769165596259,0.87942644,2933.3,2932.0,0.14662067]
[1769165596458,0.87942644,2933.2,2932.0,0.14662067]
[1769165596659,0.87942644,2933.1,2932.0,0.14662067]
[1769165596962,0.87942644,2933.1,2931.9,0.00412229]
[1769165596963,0.1527181,2932.9,2931.9,0.00412229]
[1769165597153,0.879533,2932.8,2931.9,0.00412229]
[1769165597358,0.879533,2932.7,2931.9,0.00412229]
[1769165597656,0.1527181,2932.9,2931.9,0.00412229]
[1769165597856,0.87929853,2932.8,2931.9,0.00412229]
[1769165598056,0.87929853,2932.7,2931.9,0.00412229]
[1769165598254,0.1527181,2932.9,2931.9,0.00412229]
[1769165598452,1.03183512,2932.8,2931.9,0.00412229]
[1769165598650,0.87911702,2932.7,2931.9,0.00412229]
[1769165600054,0.00300378,2933.4,2932.0,1.05762363]
[1769165600356,0.87886796,2933.3,2932.0,1.05762363]
[1769165600666,0.00300378,2933.4,2932.0,3.46618714]
[1769165601053,0.00300378,2933.4,2932.1,0.14662067]
[1769165603557,0.00300378,2933.4,2932.1,2.55518418]
[1769165603858,0.00300378,2933.4,2932.2,0.14662067]
[1769165605458,0.00300378,2933.4,2932.2,2.55518418]
[1769165605657,0.00300378,2933.4,2932.3,0.14662067]
[1769165609561,0.00300378,2933.4,2931.9,0.00412229]
[1769165609562,0.15572188,2933.4,2931.9,0.00412229]
[1769165611662,0.15572188,2933.4,2931.9,0.15074296]
[1769165612067,0.87381504,2933.3,2931.9,0.15074296]
[1769165612266,0.87381504,2933.2,2931.9,0.15074296]
[1769165612467,0.15572188,2933.4,2931.9,0.15074296]
[1769165612768,0.8738122,2933.3,2931.9,0.15074296]
[1769165613063,0.8738122,2933.2,2931.9,0.15074296]
[1769165613265,0.15572188,2933.4,2931.9,0.15074296]
[1769165613458,0.87382015,2933.3,2931.9,0.15074296]
[1769165613658,0.87382015,2933.2,2931.9,0.15074296]
[1769165613860,0.15572188,2933.4,2931.9,0.15074296]
[1769165614166,1.02144505,2933.3,2931.9,0.15074296]
[1769165614368,0.87383007,2933.2,2931.9,0.15074296]
[1769165615967,0.14761498,2933.3,2931.9,0.15074296]
[1769165621568,0.14761498,2933.1,2931.9,0.00412229]
[1769165625771,0.87383092,2933.0,2931.9,0.00412229]
[1769165625967,0.14761498,2933.0,2931.9,0.00412229]
[1769165630876,0.14761498,2933.0,2932.1,0.91112405]
[1769165632978,0.14761498,2932.8,2931.9,0.00412229]
[1769165633871,0.14761498,2932.6,2931.9,0.00412229]
[1769165634076,0.15272336,2932.6,2931.2,3.31968756]
[1769165635080,0.15272336,2932.6,2931.2,3.32266943]
[1769165638377,0.15272336,2932.6,2931.5,0.91112405]
[1769165640278,0.14761498,2933.0,2932.0,0.91112405]
[1769165640483,1.02137611,2932.9,2931.8,0.00510838]
[1769165640777,0.14761498,2932.7,2931.8,0.00510838]
[1769165641682,0.17069,2932.9,2931.8,0.00510838]
[1769165641886,0.14193485,2933.4,2932.3,0.91112405]
[1769165642086,0.87367267,2933.3,2932.3,0.91112405]
[1769165642289,0.14193485,2933.4,2932.3,0.91112405]
[1769165642290,0.87367267,2933.2,2932.3,0.91112405]
[1769165642586,0.87367267,2933.1,2932.3,0.91112405]
[1769165642786,0.14193485,2933.4,2932.3,0.91112405]
[1769165643091,0.87366784,2933.3,2932.3,0.91112405]
[1769165643389,0.87366784,2933.2,2932.3,0.91112405]
[1769165643685,0.14193485,2933.4,2932.3,0.91112405]
[1769165643888,0.87368766,2933.3,2932.3,0.91112405]
[1769165644075,0.00300378,2933.4,2932.3,0.91112405]
[1769165644277,0.87367376,2933.3,2932.3,0.91112405]
[1769165644479,0.00300378,2933.4,2932.3,0.91112405]
[1769165644689,0.87367609,2933.3,2932.3,0.91112405]
[1769165644888,0.00300378,2933.4,2932.3,0.91112405]
[1769165645090,0.00300378,2933.4,2932.3,1.05287435]
[1769165645291,0.00300378,2933.4,2932.6,0.91112405]
[1769165647181,0.91112405,2933.3,2932.1,2.40856351]
[1769165647384,1.05977526,2933.3,2931.9,0.15114531]
[1769165647583,1.05977526,2933.3,2932.0,0.91112405]
[1769165653495,0.00300378,2933.4,2932.3,0.91112405]
[1769165653688,0.00300378,2933.4,2932.3,1.06226936]
[1769165655190,0.00300378,2933.4,2932.6,0.91112405]
[1769165655590,0.00300378,2933.4,2932.6,1.06226936]
[1769165655795,0.31927121,2934.1,2932.7,0.15114531]
[1769165656094,0.87312391,2934.0,2932.7,0.15114531]
[1769165656292,0.87312391,2933.9,2932.7,0.15114531]
[1769165656493,0.87312391,2933.8,2932.7,0.15114531]
[1769165656689,0.87312391,2933.7,2932.7,0.15114531]
[1769165656893,0.87312391,2933.6,2932.7,0.15114531]
[1769165657093,0.87312391,2933.5,2932.7,0.15114531]
[1769165657287,0.00306377,2933.8,2932.7,0.15114531]
[1769165657489,0.87278225,2933.7,2932.7,0.15114531]
[1769165657790,0.87278225,2933.6,2932.7,0.15114531]
[1769165657989,0.87278227,2933.5,2932.7,0.15114531]
[1769165658192,0.00306377,2933.8,2932.7,0.15114531]
[1769165658390,0.87264472,2933.7,2932.7,0.15114531]
[1769165658591,0.87264472,2933.6,2932.7,0.15114531]
[1769165658792,0.00306377,2933.8,2932.7,0.15114531]
[1769165658994,0.87264468,2933.7,2932.7,0.15114531]
[1769165659194,0.87264468,2933.6,2932.7,0.15114531]
[1769165659394,0.00306377,2933.8,2932.7,0.15114531]
[1769165659693,0.87252555,2933.7,2932.7,0.15114531]
[1769165659894,0.87252555,2933.6,2932.7,0.15114531]
[1769165660094,0.00306377,2933.8,2932.7,0.15114531]
[1769165660300,0.8724215,2933.7,2932.7,0.15114531]
[1769165660598,0.8724215,2933.6,2932.7,0.15114531]
[1769165660799,0.00306377,2933.8,2932.7,0.15114531]
[1769165661003,0.87242151,2933.7,2932.7,0.15114531]
[1769165661195,0.87242151,2933.6,2932.7,0.15114531]
[1769165661502,0.00306377,2933.8,2932.7,0.15114531]
[1769165661697,0.87230709,2933.7,2932.6,0.91112405]
[1769165661897,1.0209583,2933.6,2932.3,0.91112405]
[1769165662102,0.87230709,2933.5,2932.3,0.91112405]
[1769165666203,0.14865121,2933.6,2932.3,0.91112405]
[1769165668706,0.14865121,2933.6,2932.3,1.06226936]
[1769165669201,0.87256834,2933.5,2932.3,1.06226936]
[1769165669400,0.14865121,2933.6,2932.3,1.06226936]
[1769165669601,0.87256833,2933.5,2932.3,1.06226936]
[1769165669805,0.14865121,2933.6,2932.3,1.06226936]
[1769165670008,0.87256838,2933.5,2932.3,1.06226936]
[1769165670216,0.14865121,2933.6,2932.3,1.06226936]
[1769165670409,0.87259657,2933.5,2932.3,1.06226936]
[1769165670613,0.14865121,2933.6,2932.3,1.06226936]
[1769165670908,0.87259655,2933.5,2932.3,1.06226936]
[1769165671102,0.14865121,2933.6,2932.3,1.06226936]
[1769165671301,0.87262356,2933.5,2932.3,1.06226936]
[1769165671513,0.14865121,2933.6,2932.3,1.06226936]
[1769165671714,0.87300657,2933.5,2932.3,1.06226936]
[1769165671912,0.14865121,2933.6,2932.3,1.06226936]
[1769165672213,0.87300654,2933.5,2932.3,1.06226936]
[1769165672412,0.14865121,2933.6,2932.3,1.06226936]
[1769165672614,0.87314029,2933.5,2932.3,1.06226936]
[1769165672912,0.14865121,2933.6,2932.3,1.06226936]
[1769165673112,0.87314033,2933.5,2932.3,1.06226936]
[1769165673415,0.87326596,2933.4,2932.3,0.91112405]
[1769165673616,0.14657726,2933.5,2932.3,0.91112405]
[1769165673810,0.87328459,2933.4,2932.3,0.91112405]
[1769165674114,0.17065,2933.6,2932.3,1.05832734]
[1769165674314,0.87331622,2933.5,2932.3,1.05832734]
[1769165674508,0.87331622,2933.4,2932.3,1.05832734]
[1769165674714,0.17065,2933.6,2932.3,1.05832734]
[1769165675008,0.87331611,2933.5,2932.3,1.05832734]
[1769165675208,0.17065,2933.6,2932.3,1.05832734]
[1769165675209,0.87331611,2933.4,2932.3,1.05832734]
[1769165675410,0.17065,2933.6,2932.3,1.05832734]
[1769165675609,0.87331818,2933.5,2932.3,1.05832734]
[1769165675812,0.87331818,2933.4,2932.3,1.05832734]
[1769165676017,0.17065,2933.6,2932.4,0.14720329]
[1769165676214,0.87327753,2933.5,2932.4,0.14720329]
[1769165676415,0.87327753,2933.4,2932.4,0.14720329]
[1769165676617,0.17065,2933.6,2932.4,0.14720329]
[1769165676819,0.87327621,2933.5,2932.4,0.14720329]
[1769165677111,0.87327621,2933.4,2932.4,0.14720329]
[1769165677311,0.17065,2933.6,2932.4,0.14720329]
[1769165677511,0.87328812,2933.5,2932.4,0.14720329]
[1769165677713,0.87328812,2933.4,2932.4,0.14720329]
[1769165678013,0.17065,2933.6,2932.4,0.14720329]
[1769165678314,0.87334879,2933.5,2932.4,0.14720329]
[1769165678509,0.87334879,2933.4,2932.6,0.91112405]
[1769165678813,0.00306377,2933.8,2932.6,0.91112405]
[1769165679010,0.87334461,2933.7,2932.6,0.91112405]
[1769165679214,0.87334461,2933.6,2932.6,0.91112405]
[1769165679414,0.00306377,2933.8,2932.6,0.91112405]
[1769165679415,0.87334461,2933.5,2932.6,1.05832734]
[1769165679617,0.00306377,2933.8,2932.6,1.05832734]
[1769165679920,0.87341801,2933.7,2932.6,1.05832734]
[1769165680120,0.87341801,2933.6,2932.6,1.05832734]
[1769165680315,0.87341801,2933.5,2932.6,1.05832734]
[1769165680613,0.00306377,2933.8,2932.6,1.05832734]
[1769165680813,0.87350779,2933.7,2932.6,1.05832734]
[1769165681013,0.87350779,2933.6,2932.6,1.05832734]
[1769165681219,0.87350779,2933.5,2932.6,1.05832734]
[1769165681414,0.00306377,2933.8,2932.6,1.05832734]
[1769165681613,0.87361916,2933.7,2932.6,1.05832734]
[1769165681820,0.87361916,2933.6,2932.6,1.05832734]
[1769165682016,0.87361916,2933.5,2932.6,1.05832734]
[1769165682218,0.00306377,2933.8,2932.6,1.05832734]
[1769165682417,0.87375698,2933.7,2932.6,1.05832734]
[1769165682715,0.87375698,2933.6,2932.6,1.05832734]
[1769165683017,0.87375698,2933.5,2932.6,1.05832734]
[1769165683209,0.00306377,2933.8,2932.6,1.05832734]
[1769165683210,0.87375698,2933.4,2932.6,1.05832734]
[1769165683412,0.00306377,2933.8,2932.6,1.05832734]
[1769165683613,0.87394606,2933.7,2932.6,1.05832734]
[1769165683907,0.87394606,2933.6,2932.6,1.05832734]
[1769165684220,0.87394606,2933.5,2932.6,1.05832734]
[1769165684518,0.87394606,2933.4,2932.6,1.05832734]
[1769165684715,0.00306377,2933.8,2932.6,1.05832734]
[1769165684916,0.87395685,2933.7,2932.6,1.05832734]
[1769165685119,0.87395685,2933.6,2932.6,1.05832734]
[1769165685318,0.87395685,2933.5,2932.6,1.05832734]
[1769165685517,0.87395685,2933.4,2932.6,1.05832734]
[1769165685818,0.00306377,2933.8,2932.6,1.05832734]
[1769165686116,0.87396735,2933.7,2932.6,1.05832734]
[1769165686317,0.87396735,2933.6,2932.6,1.05832734]
[1769165686620,0.87396735,2933.5,2932.6,1.05832734]
[1769165686919,0.87396735,2933.4,2932.6,1.05832734]
[1769165687118,0.87396735,2933.3,2932.6,1.05832734]
[1769165687317,0.00306377,2933.8,2932.6,1.05832734]
[1769165687515,0.87401157,2933.7,2932.9,0.91112405]
[1769165687720,0.87401157,2933.6,2932.9,0.91112405]
[1769165687920,0.87401157,2933.5,2932.9,0.91112405]
[1769165688120,0.00306377,2933.8,2932.9,0.91112405]
[1769165688321,0.87391033,2933.7,2932.9,0.91112405]
[1769165688521,0.87391033,2933.6,2932.9,0.91112405]
[1769165688720,0.87391033,2933.5,2932.9,0.91112405]
[1769165688922,0.00306377,2933.8,2932.9,0.91112405]
[1769165689111,0.87390491,2933.7,2932.9,0.91112405]
[1769165689311,0.87390491,2933.6,2932.9,0.91112405]
[1769165689515,0.87390491,2933.5,2932.9,0.91112405]
[1769165689714,0.00306377,2933.8,2932.9,0.91112405]
[1769165689922,0.87380466,2933.7,2932.9,0.91112405]
[1769165690124,0.87380466,2933.6,2932.9,0.91112405]
[1769165690325,0.00306377,2933.8,2932.9,0.91112405]
[1769165690616,0.87366278,2933.7,2932.9,0.91112405]
[1769165690823,0.00306377,2933.8,2932.9,0.91112405]
[1769165691124,0.87365077,2933.7,2932.7,0.14720329]
[1769165691421,0.00306377,2933.8,2932.7,0.14720329]
[1769165691618,0.87341737,2933.7,2932.7,0.14720329]
[1769165691819,0.00306377,2933.8,2932.7,0.14720329]
[1769165692021,0.87341736,2933.7,2932.7,0.14720329]
[1769165692322,0.00306377,2933.8,2932.7,0.14720329]
[1769165694028,0.14964103,2933.8,2932.4,2.57928351]
[1769165694224,0.87268572,2933.7,2932.5,0.14720329]
[1769165694427,0.00306377,2933.8,2932.5,0.14720329]
[1769165694626,0.87266223,2933.7,2932.5,0.14720329]
[1769165694926,0.00306377,2933.8,2932.5,0.14720329]
[1769165695117,0.87266208,2933.7,2932.5,0.14720329]
[1769165695322,0.00306377,2933.8,2932.5,0.14720329]
[1769165695528,0.87262371,2933.7,2932.5,0.14720329]
[1769165695827,0.00306377,2933.8,2932.5,0.14720329]
[1769165696025,0.8726237,2933.7,2932.5,0.14720329]
[1769165696227,0.00306377,2933.8,2932.5,0.14720329]
[1769165700429,0.00306377,2933.8,2932.9,0.14720329]
[1769165700734,0.31714726,2934.9,2933.0,0.14720329]
[1769165700928,1.04300557,2934.8,2933.0,0.14720329]
[1769165701124,0.87242557,2934.7,2933.0,0.14720329]
[1769165701324,0.14657726,2934.5,2933.0,0.14720329]
[1769165701530,0.14657726,2934.3,2932.7,6.729]
[1769165701735,0.15168564,2934.1,2932.7,6.729]
[1769165702136,0.15168564,2934.1,2932.7,6.86319401]
[1769165702432,0.15168564,2934.1,2932.7,0.13419401]
[1769165702633,0.13778876,2933.9,2932.5,4.192]
[1769165703031,0.13778876,2933.9,2932.5,4.32619401]
[1769165703337,0.13778876,2933.9,2932.6,0.13419401]
[1769165704433,0.17572838,2934.1,2932.6,0.13419401]
[1769165704637,0.87209184,2934.0,2932.6,0.13419401]
[1769165704933,0.87209184,2933.9,2932.6,0.13419401]
[1769165705136,0.17572838,2934.1,2932.6,0.13419401]
[1769165705333,0.87214731,2934.0,2932.6,0.13419401]
[1769165705536,0.87214731,2933.9,2932.6,0.13419401]
[1769165705727,0.17572838,2934.1,2932.6,0.13419401]
[1769165705932,0.87214557,2934.0,2932.6,0.13419401]
[1769165706238,0.87214557,2933.9,2932.6,0.13419401]
[1769165706434,0.17572838,2934.1,2932.6,0.13419401]
[1769165706635,0.87218712,2934.0,2932.6,0.13419401]
[1769165706832,0.87218712,2933.9,2932.6,0.13419401]
[1769165707032,0.17572838,2934.1,2932.6,0.13419401]
[1769165707234,0.87223793,2934.0,2932.6,0.13419401]
[1769165707433,0.87223793,2933.9,2932.6,0.13419401]
[1769165707733,0.17572838,2934.1,2932.6,0.13419401]
[1769165707933,0.87222897,2934.0,2932.6,0.13419401]
[1769165708129,0.17572838,2934.1,2932.9,0.13384504]
[1769165708130,0.00510838,2934.1,2932.9,0.13384504]
[1769165712038,0.13968897,2934.1,2932.6,2.40856351]
[1769165712543,0.87206821,2934.0,2932.6,0.13384504]
[1769165712742,0.13968897,2934.1,2932.6,0.13384504]
[1769165713042,0.8720686,2934.0,2932.6,0.13384504]
[1769165713240,0.13968897,2934.1,2932.6,0.13384504]
[1769165713440,0.87214037,2934.0,2932.6,0.13384504]
[1769165713642,0.13968897,2934.1,2932.6,0.13384504]
[1769165713840,0.87214026,2934.0,2932.6,0.13384504]
[1769165714146,0.13968897,2934.1,2932.6,0.13384504]
[1769165714346,0.87222758,2934.0,2932.6,0.13384504]
[1769165714551,0.13968897,2934.1,2932.6,0.13384504]
[1769165714751,0.87222754,2934.0,2932.6,0.13384504]
[1769165715049,0.13968897,2934.1,2932.6,0.13384504]
[1769165715347,0.87233333,2934.0,2932.6,0.13384504]
[1769165715546,0.13968897,2934.1,2932.6,0.13384504]
[1769165715741,0.87233335,2934.0,2932.6,0.13384504]
[1769165715941,0.13968897,2934.1,2932.6,0.13384504]
[1769165716151,0.87233352,2934.0,2932.6,2.54240855]
[1769165716350,0.13968897,2934.1,2932.6,2.54240855]
[1769165716550,0.87245957,2934.0,2932.6,2.54240855]
[1769165716751,0.13968897,2934.1,2932.6,2.54240855]
[1769165716955,0.87245976,2934.0,2932.6,2.54240855]
[1769165717150,0.13968897,2934.1,2932.6,2.54240855]
[1769165717446,0.87261295,2934.0,2932.6,2.54240855]
[1769165717650,0.13968897,2934.1,2932.6,2.54240855]
[1769165717947,0.8726129,2934.0,2932.6,2.54240855]
[1769165718147,0.13968897,2934.1,2932.6,2.54240855]
[1769165718348,0.87268673,2934.0,2932.6,2.54240855]
[1769165718547,0.13968897,2934.1,2932.6,2.54240855]
[1769165718745,0.87268691,2934.0,2932.6,2.54240855]
[1769165718946,0.13968897,2934.1,2932.6,2.54240855]
[1769165719146,0.87268698,2934.0,2932.6,2.54240855]
[1769165719351,0.13968897,2934.1,2932.6,2.54240855]
[1769165719650,0.87274378,2934.0,2932.6,2.54240855]
[1769165719848,0.87275105,2933.9,2932.6,0.13384504]
[1769165720051,0.13968897,2934.1,2932.6,0.13384504]
[1769165720351,0.87281479,2934.0,2932.6,0.13384504]
[1769165720545,1.00739538,2933.9,2932.6,0.13384504]
[1769165720751,0.13458059,2933.6,2932.3,2.40856351]
[1769165720951,0.87281479,2933.5,2932.2,3.54684504]
[1769165722855,1.00739538,2933.5,2932.2,3.54684504]
[1769165723157,0.87255707,2933.4,2932.2,3.54684504]
[1769165723357,0.13458059,2933.5,2932.2,3.54684504]
[1769165723554,0.8723398,2933.4,2932.2,3.54684504]
[1769165723754,0.13458059,2933.5,2932.2,3.54684504]
[1769165723955,0.87233971,2933.4,2932.2,3.54684504]
[1769165724157,0.13458059,2933.5,2932.2,3.54684504]
[1769165724359,0.873578,2933.4,2932.2,3.54684504]
[1769165724658,0.13458059,2933.5,2932.2,3.54684504]
[1769165724851,0.87357809,2933.4,2932.2,3.54684504]
[1769165725145,0.13458059,2933.5,2932.2,3.54684504]
[1769165725351,0.91575745,2934.1,2931.9,4.38975]
[1769165725352,0.13458059,2933.3,2931.9,4.38975]
[1769165725551,0.13458059,2933.3,2931.9,4.52359504]
[1769165726862,0.13458059,2933.3,2931.9,4.35284504]
[1769165728565,0.13458059,2933.3,2931.9,0.13384504]
[1769165729262,0.87274764,2933.2,2931.9,0.13384504]
[1769165729467,0.13458059,2933.3,2931.9,0.13384504]
[1769165729763,0.87274772,2933.2,2931.9,0.13384504]
[1769165729964,0.13458059,2933.3,2931.9,0.13384504]
[1769165730164,0.87274763,2933.2,2931.9,0.13384504]
[1769165730359,0.13458059,2933.3,2931.9,0.13384504]
[1769165730666,0.87260391,2933.2,2931.9,0.13384504]
[1769165730865,0.13458059,2933.3,2931.9,0.13384504]
[1769165731055,0.87260391,2933.2,2931.9,0.13384504]
[1769165731261,0.13458059,2933.3,2931.9,0.13384504]
[1769165731564,0.87257715,2933.2,2931.9,0.13384504]
[1769165731769,0.13458059,2933.3,2931.9,0.13384504]
[1769165731967,0.87257667,2933.2,2931.9,0.13384504]
[1769165732167,0.13458059,2933.3,2931.9,0.13384504]
[1769165733066,0.17065,2933.5,2932.0,0.13741332]
[1769165733268,0.87237665,2933.4,2932.0,0.13741332]
[1769165733468,0.17065,2933.5,2932.0,0.13741332]
[1769165733670,0.87237605,2933.4,2932.0,0.13741332]
[1769165733865,0.17065,2933.5,2932.0,0.13741332]
[1769165734075,0.87237603,2933.4,2932.0,0.13741332]
[1769165734376,0.17065,2933.5,2932.0,0.13741332]
[1769165734574,0.87230425,2933.4,2932.0,0.13741332]
[1769165734876,0.17065,2933.5,2932.0,0.13741332]
[1769165735176,0.87230437,2933.4,2932.0,0.13741332]
[1769165735365,0.17065,2933.5,2932.0,0.13741332]
[1769165735772,0.17065,2933.5,2932.0,4.36841332]
[1769165735773,1.01548954,2933.4,2932.0,4.36841332]
[1769165735972,0.14324561,2933.4,2932.0,4.36841332]
[1769165737381,0.14324561,2933.4,2932.0,0.13741332]
[1769165745184,0.17065,2933.5,2932.0,0.13741332]
[1769165745584,0.87316738,2933.4,2932.0,0.13741332]
[1769165745787,0.17065,2933.5,2932.0,0.13741332]
[1769165746082,0.87316735,2933.4,2932.0,0.13741332]
[1769165746283,0.17065,2933.5,2932.0,0.13741332]
[1769165746480,0.87338375,2933.4,2932.0,0.13741332]
[1769165746676,0.17065,2933.5,2932.0,0.13741332]
[1769165746884,0.87338384,2933.4,2932.0,0.13741332]
[1769165747081,0.17065,2933.5,2932.0,0.13741332]
[1769165747284,0.87364613,2933.4,2932.0,0.13741332]
[1769165747483,0.87364613,2933.3,2932.0,0.13741332]
[1769165747679,0.17065,2933.5,2932.0,0.13741332]
[1769165747880,0.87364609,2933.4,2932.0,0.13741332]
[1769165748079,0.87364609,2933.3,2932.0,0.13741332]
[1769165748280,0.17065,2933.5,2932.0,0.13741332]
[1769165748484,0.87397781,2933.4,2932.0,0.13741332]
[1769165748785,0.87397781,2933.3,2932.0,0.13741332]
[1769165748986,0.17065,2933.5,2932.0,0.13741332]
[1769165749179,0.87397797,2933.4,2932.0,0.13741332]
[1769165749389,0.87397797,2933.3,2932.0,0.13741332]
[1769165749588,0.17065,2933.5,2932.0,0.13741332]
[1769165749887,0.87442669,2933.4,2932.0,0.13741332]
[1769165750088,0.87442669,2933.3,2932.0,0.13741332]
[1769165750290,0.87442669,2933.2,2932.0,0.13741332]
[1769165750492,0.17065,2933.5,2932.0,0.13741332]
[1769165750786,0.87496255,2933.4,2932.0,0.13741332]
[1769165750988,0.87496255,2933.3,2932.0,0.13741332]
[1769165751189,0.87496255,2933.2,2932.0,2.54597683]
[1769165751391,0.17065,2933.5,2932.0,2.54597683]
[1769165751589,0.87506027,2933.4,2932.0,2.54597683]
[1769165751790,0.87506027,2933.3,2932.0,2.54597683]
[1769165751992,0.87506027,2933.2,2932.1,0.13741332]
[1769165752194,0.17065,2933.5,2932.1,0.13741332]
[1769165752387,0.87519318,2933.4,2932.1,0.13741332]
[1769165752581,0.87519318,2933.3,2932.1,0.13741332]
[1769165752786,0.87519318,2933.2,2932.1,0.13741332]
[1769165752989,0.17065,2933.5,2932.4,0.91093285]
[1769165753294,0.87525718,2933.4,2932.4,0.91093285]
[1769165753495,0.87525718,2933.3,2932.4,1.04834617]
[1769165753795,0.14324561,2933.8,2932.4,1.04834617]
[1769165753989,0.87521231,2933.7,2932.4,1.04834617]
[1769165754185,0.87521231,2933.6,2932.4,1.04834617]
[1769165754385,0.87521231,2933.5,2932.4,1.04834617]
[1769165754595,0.87521231,2933.4,2932.4,1.04834617]
[1769165754793,0.87521231,2933.3,2932.4,1.04834617]
[1769165754987,0.14324561,2933.7,2932.4,1.04834617]
[1769165755189,0.87589323,2933.6,2932.4,1.04834617]
[1769165755392,0.87589323,2933.5,2932.4,1.04834617]
[1769165755594,0.87589323,2933.4,2932.4,1.04834617]
[1769165755795,0.87589323,2933.3,2932.4,1.04834617]
[1769165756089,0.14324561,2933.7,2932.4,1.04834617]
[1769165756289,0.87585274,2933.6,2932.4,1.04834617]
[1769165756491,0.87585274,2933.5,2932.4,1.04834617]
[1769165756794,0.87585274,2933.4,2932.4,1.04834617]
[1769165757095,0.87585274,2933.3,2932.4,1.04834617]
[1769165757291,0.14324561,2933.7,2932.7,0.91093285]
[1769165757493,0.8758027,2933.6,2932.7,0.91093285]
[1769165757689,0.8758027,2933.5,2932.7,0.91093285]
[1769165757891,0.8758027,2933.4,2932.7,0.91093285]
[1769165758191,0.17063,2933.9,2932.7,0.91093285]
[1769165758391,0.87571506,2933.8,2932.7,0.91093285]
[1769165758593,0.17063,2933.9,2932.7,0.91093285]
[1769165758594,0.87571506,2933.7,2932.7,0.91093285]
[1769165758796,0.87571506,2933.6,2932.7,0.91093285]
[1769165758997,0.17063,2933.9,2932.7,0.91093285]
[1769165759199,0.87541772,2933.8,2932.7,0.91093285]
[1769165759397,0.87541772,2933.7,2932.7,0.91093285]
[1769165759595,0.87541772,2933.6,2932.7,0.91093285]
[1769165759795,0.17063,2933.9,2932.7,0.91093285]
[1769165759989,0.87541698,2933.8,2932.7,0.91093285]
[1769165760194,0.87541698,2933.7,2932.7,0.91093285]
[1769165760398,0.87541698,2933.6,2932.7,0.91093285]